[Event "FIDE CB Open 2022"]
[Site "Ceske Budejovice"]
[Date "2022.07.03"]
[Round "3.47"]
[White "Rucabado, Stefan"]
[Black "Svejda, Karel"]
[Result "1-0"]
[ECO "E90"]
[WhiteElo "1809"]
[BlackElo "1619"]
[Annotator "NA"]
[PlyCount "85"]
[EventDate "2022.07.01"]
[EventType "swiss"]
[EventCountry "CZE"]
[SourceTitle "playchess.com"]
[Source "ChessBase"]
[SourceQuality "1"]
[TimeControl "40/5400+30:1800+30"]

1. d4 {[%emt 0:11:46]} Nf6 {[%emt 0:00:07]} 2. c4 {[%emt 0:00:05]} g6 {[%emt 0:00:04]} 3. Nc3 {[%emt 0:00:04]} Bg7 {[%emt 0:00:03]} 4. e4 {[%emt 0:00:06]} d6 {[%emt 0:00:03]} 5. Nf3 {[%emt 0:00:06]} O-O {[%emt 0:00:07]} 6. h3 {[%emt 0:01:04]} e5 {[%emt 0:01:50]} 7. d5 {[%emt 0:00:07]} Nbd7 {[%emt 0:00:17]} 8. Be3 {[%emt 0:01:46]} Nc5 {[%emt 0:00:41]} 9. Nd2 {[%emt 0:00:07]} a5 {[%emt 0:00:51]} 10. g4 {[%emt 0:00:12]} Nfd7 {[%emt 0:10:57]} 11. Be2 {[%emt 0:05:56]} Bf6 {[%emt 0:05:03]} 12. Nf3 {[%emt 0:05:01]} Bg7 {[%emt 0:12:03]} 13. Qc2 {[%emt 0:08:05]} c6 {[%emt 0:06:15]} 14. O-O-O {[%emt 0:10:04]} Nf6 {[%emt 0:05:28]} 15. Bxc5 {[%emt 0:04:42]} dxc5 {[%emt 0:00:26]} 16. Nxe5 {[%emt 0:01:53]} Nxd5 {[%emt 0:10:20]} 17. exd5 {[%emt 0:08:41]} Qg5+ {[%emt 0:01:53]} 18. Kb1 {[%emt 0:00:07]} Qxe5 {[%emt 0:00:46]} 19. Rhe1 {[%emt 0:00:07]} Re8 {[%emt 0:04:20]} 20. Qc1 {[%emt 0:07:49]} Bd7 {[%emt 0:04:17]} 21. dxc6 {[%emt 0:05:51]} Bxc6 {[%emt 0:00:32]} 22. Bf3 {[%emt 0:00:22]} Qf6 {[%emt 0:04:06]} 23. Bxc6 {[%emt 0:00:18]} bxc6 {[%emt 0:00:16]} 24. Ne4 {[%emt 0:01:23]} Qf3 {[%emt 0:02:08]} 25. Re3 {[%emt 0:04:51]} Qf4 {[%emt 0:03:57]} 26. Nxc5 {[%emt 0:00:10]} Qxf2 {[%emt 0:04:54]} 27. Ne4 {[%emt 0:01:30]} Qh4 {[%emt 0:03:08]} 28. Rde1 {[%emt 0:01:05]} Reb8 {[%emt 0:01:52]} 29. R1e2 {[%emt 0:01:30]} Rb6 {[%emt 0:04:43]} 30. c5 {[%emt 0:01:18]} Rb4 {[%emt 0:00:58]} 31. a3 {[%emt 0:00:33]} Rbb8 {[%emt 0:00:40]} 32. Qc4 {[%emt 0:00:35]} Ra7 {[%emt 0:02:30]} 33. Nd6 {[%emt 0:02:43]} Qf6 {[%emt 0:01:11]} 34. Qc2 {[%emt 0:05:51]} Qf4 {[%emt 0:05:57]} 35. Re8+ {[%emt 0:01:24]} Rxe8 {[%emt 0:00:02]} 36. Rxe8+ {[%emt 0:00:11]} Bf8 {[%emt 0:00:03]} 37. Qc3 {[%emt 0:01:33]} Qf1+ {[%emt 0:03:21]} 38. Ka2 {[%emt 0:00:10]} Qg2 {[%emt 0:01:49]} 39. Ne4 {[%emt 0:02:57]} Rb7 {[%emt 0:01:23]} 40. Nf6+ {[%emt 0:00:17]} Kg7 {[%emt 0:00:05]} 41. Nh5+ {[%emt 0:30:09]} Kh6 {[%emt 0:30:27]} 42. Qe3+ {[%emt 0:00:47]} g5 {[%emt 0:00:00]} 43. Re6+ {[%emt 0:00:00]} 1-0

[Event "FIDE CB Open 2022"]
[Site "Ceske Budejovice"]
[Date "2022.07.03"]
[Round "3.48"]
[White "Steinbauer, Sebastian"]
[Black "Pisar, Tomas"]
[Result "1/2-1/2"]
[ECO "C55"]
[WhiteElo "1808"]
[BlackElo "1640"]
[Annotator "NA"]
[PlyCount "86"]
[EventDate "2022.07.01"]
[EventType "swiss"]
[EventCountry "CZE"]
[SourceTitle "playchess.com"]
[Source "ChessBase"]
[SourceQuality "1"]
[TimeControl "40/5400+30:1800+30"]

1. e4 {[%emt 0:00:06]} e5 {[%emt 0:00:04]} 2. Nf3 {[%emt 0:00:04]} Nc6 {[%emt 0:00:04]} 3. Bc4 {[%emt 0:00:04]} Be7 {[%emt 0:00:04]} 4. d3 {[%emt 0:00:19]} Nf6 {[%emt 0:00:07]} 5. Nc3 {[%emt 0:00:17]} O-O {[%emt 0:00:08]} 6. h3 {[%emt 0:01:14]} d6 {[%emt 0:00:05]} 7. Be3 {[%emt 0:00:15]} Na5 {[%emt 0:00:39]} 8. Bb3 {[%emt 0:00:15]} Nxb3 {[%emt 0:00:20]} 9. axb3 {[%emt 0:00:05]} a5 {[%emt 0:02:03]} 10. Qd2 {[%emt 0:00:06]} b6 {[%emt 0:08:10]} 11. b4 {[%emt 0:02:13]} Be6 {[%emt 0:08:36]} 12. bxa5 {[%emt 0:00:34]} bxa5 {[%emt 0:00:15]} 13. d4 {[%emt 0:01:02]} exd4 {[%emt 0:03:59]} 14. Nxd4 {[%emt 0:00:50]} Qd7 {[%emt 0:03:16]} 15. Nxe6 {[%emt 0:02:59]} fxe6 {[%emt 0:00:19]} 16. O-O {[%emt 0:00:59]} Rfb8 {[%emt 0:04:54]} 17. b3 {[%emt 0:01:18]} Qc6 {[%emt 0:02:39]} 18. f3 {[%emt 0:00:48]} d5 {[%emt 0:04:09]} 19. exd5 {[%emt 0:01:03]} exd5 {[%emt 0:01:49]} 20. Ne2 {[%emt 0:01:24]} a4 {[%emt 0:03:49]} 21. Rfd1 {[%emt 0:03:31]} axb3 {[%emt 0:01:28]} 22. Nd4 {[%emt 0:02:40]} Qd7 {[%emt 0:01:19]} 23. Nxb3 {[%emt 0:04:46]} c6 {[%emt 0:02:38]} 24. Bc5 {[%emt 0:04:02]} Bxc5+ {[%emt 0:04:00]} 25. Nxc5 {[%emt 0:00:08]} Qd6 {[%emt 0:00:42]} 26. Qd4 {[%emt 0:02:32]} Nd7 {[%emt 0:05:06]} 27. Nxd7 {[%emt 0:01:10]} Qxd7 {[%emt 0:00:07]} 28. c4 {[%emt 0:01:06]} Rxa1 {[%emt 0:00:54]} 29. Rxa1 {[%emt 0:01:28]} Qe6 {[%emt 0:04:58]} 30. cxd5 {[%emt 0:02:14]} Qxd5 {[%emt 0:00:09]} 31. Qxd5+ {[%emt 0:00:15]} cxd5 {[%emt 0:00:04]} 32. Rd1 {[%emt 0:00:32]} Rd8 {[%emt 0:00:05]} 33. Kf2 {[%emt 0:00:08]} Kf7 {[%emt 0:00:15]} 34. Re1 {[%emt 0:01:12]} Re8 {[%emt 0:01:14]} 35. Ra1 {[%emt 0:01:26]} Kf6 {[%emt 0:00:35]} 36. Rd1 {[%emt 0:02:42]} Rd8 {[%emt 0:01:09]} 37. f4 {[%emt 0:00:06]} g5 {[%emt 0:04:36]} 38. Kf3 {[%emt 0:00:50]} Kf5 {[%emt 0:01:21]} 39. g4+ {[%emt 0:00:34]} Kf6 {[%emt 0:00:07]} 40. f5 {[%emt 0:00:37]} h6 {[%emt 0:01:37]} 41. Re1 {[%emt 0:31:00]} Rd6 {[%emt 0:30:16]} 42. Re8 {[%emt 0:00:51]} Ra6 {[%emt 0:02:34]} 43. Rg8 {[%emt 0:04:30]} Kf7 {[%emt 0:02:08]} 1/2-1/2

[Event "FIDE CB Open 2022"]
[Site "Ceske Budejovice"]
[Date "2022.07.03"]
[Round "3.49"]
[White "Huemer, Gerald"]
[Black "Pavlicek, Petr"]
[Result "0-1"]
[ECO "D02"]
[WhiteElo "1627"]
[BlackElo "1806"]
[Annotator "NA"]
[PlyCount "50"]
[EventDate "2022.07.01"]
[EventType "swiss"]
[EventCountry "CZE"]
[SourceTitle "playchess.com"]
[Source "ChessBase"]
[SourceQuality "1"]
[TimeControl "40/5400+30:1800+30"]

1. d4 {[%emt 0:00:12]} d5 {[%emt 0:00:10]} 2. Bf4 {[%emt 0:00:07]} Nf6 {[%emt 0:00:16]} 3. e3 {[%emt 0:00:07]} e6 {[%emt 0:00:21]} 4. Nd2 {[%emt 0:00:14]} c5 {[%emt 0:01:05]} 5. c3 {[%emt 0:00:13]} Nc6 {[%emt 0:01:20]} 6. h3 {[%emt 0:01:19]} Be7 {[%emt 0:00:23]} 7. Ngf3 {[%emt 0:00:12]} O-O {[%emt 0:00:33]} 8. Bd3 {[%emt 0:01:03]} b6 {[%emt 0:02:48]} 9. Ne5 {[%emt 0:01:50]} Bb7 {[%emt 0:00:37]} 10. Ndf3 {[%emt 0:00:38]} Nxe5 {[%emt 0:02:58]} 11. Nxe5 {[%emt 0:01:56]} Nd7 {[%emt 0:02:40]} 12. Qh5 {[%emt 0:01:23]} f5 {[%emt 0:01:10]} 13. g4 {[%emt 0:02:27]} Nf6 {[%emt 0:06:30]} 14. Qh4 {[%emt 0:00:51]} Nxg4 {[%emt 0:01:24]} 15. Qg3 {[%emt 0:00:32]} Bh4 {[%emt 0:00:43]} 16. Qg2 {[%emt 0:02:56]} Nxf2 {[%emt 0:01:12]} 17. Rg1 {[%emt 0:09:47]} Nxh3+ {[%emt 0:00:55]} 18. Kd2 {[%emt 0:00:31]} Nxg1 {[%emt 0:00:30]} 19. Rxg1 {[%emt 0:00:00]} Bf6 {[%emt 0:00:31]} 20. Bh6 {[%emt 0:00:00]} Qe7 {[%emt 0:01:44]} 21. Be2 {[%emt 0:04:23]} Rac8 {[%emt 0:05:37]} 22. Nd3 {[%emt 0:03:36]} Kh8 {[%emt 0:01:02]} 23. Bf4 {[%emt 0:00:49]} Rg8 {[%emt 0:01:12]} 24. Rh1 {[%emt 0:00:28]} g5 {[%emt 0:01:08]} 25. Be5 {[%emt 0:01:14]} Rg7 {[%emt 0:03:10]} 0-1

[Event "FIDE CB Open 2022"]
[Site "Ceske Budejovice"]
[Date "2022.07.03"]
[Round "3.50"]
[White "Rosol, Philip"]
[Black "Jodas, Daniel"]
[Result "1-0"]
[ECO "E73"]
[WhiteElo "1741"]
[BlackElo "1614"]
[Annotator "NA"]
[PlyCount "63"]
[EventDate "2022.07.01"]
[EventType "swiss"]
[EventCountry "CZE"]
[SourceTitle "playchess.com"]
[Source "ChessBase"]
[SourceQuality "1"]
[TimeControl "40/5400+30:1800+30"]

1. d4 {[%emt 0:00:08]} Nf6 {[%emt 0:00:08]} 2. c4 {[%emt 0:00:05]} g6 {[%emt 0:00:10]} 3. Nc3 {[%emt 0:00:04]} Bg7 {[%emt 0:00:04]} 4. e4 {[%emt 0:00:06]} d6 {[%emt 0:00:15]} 5. Be2 {[%emt 0:00:05]} O-O {[%emt 0:00:15]} 6. Bg5 {[%emt 0:00:05]} Nbd7 {[%emt 0:03:03]} 7. Qd2 {[%emt 0:01:31]} c6 {[%emt 0:03:45]} 8. Nf3 {[%emt 0:03:25]} e5 {[%emt 0:05:55]} 9. Rd1 {[%emt 0:39:24]} exd4 {[%emt 0:18:42]} 10. Nxd4 {[%emt 0:05:27]} Nc5 {[%emt 0:12:01]} 11. f3 {[%emt 0:02:40]} Ne6 {[%emt 0:04:00]} 12. Nxe6 {[%emt 0:14:17]} Bxe6 {[%emt 0:05:55]} 13. Qxd6 {[%emt 0:00:30]} Qb6 {[%emt 0:00:30]} 14. Qd2 {[%emt 0:00:30]} Rfd8 {[%emt 0:00:30]} 15. Qc1 {[%emt 0:01:36]} Rxd1+ {[%emt 0:14:58]} 16. Nxd1 {[%emt 0:01:28]} Ne8 {[%emt 0:04:40]} 17. b3 {[%emt 0:04:12]} Bf8 {[%emt 0:05:41]} 18. Bd2 {[%emt 0:04:32]} Rd8 {[%emt 0:01:26]} 19. Nc3 {[%emt 0:03:15]} Bb4 {[%emt 0:11:48]} 20. a3 {[%emt 0:03:36]} Bc5 {[%emt 0:01:45]} 21. b4 {[%emt 0:01:29]} Bf2+ {[%emt 0:00:25]} 22. Kf1 {[%emt 0:01:08]} Qd4 {[%emt 0:00:50]} 23. c5 {[%emt 0:05:03]} Qxd2 {[%emt 0:01:02]} 24. Kxf2 {[%emt 0:00:59]} Bb3 {[%emt 0:04:03]} 25. Qxd2 {[%emt 0:03:24]} Rxd2 {[%emt 0:00:04]} 26. Rc1 {[%emt 0:00:50]} Nc7 {[%emt 0:00:26]} 27. Ke3 {[%emt 0:00:41]} Rd8 {[%emt 0:00:16]} 28. Rb1 {[%emt 0:00:42]} Be6 {[%emt 0:00:05]} 29. Rd1 {[%emt 0:00:48]} Rxd1 {[%emt 0:00:16]} 30. Bxd1 {[%emt 0:00:20]} Kf8 {[%emt 0:01:14]} 31. Kf4 {[%emt 0:01:06]} Ke7 {[%emt 0:00:54]} 32. Kg5 {[%emt 0:01:07]} 1-0

[Event "FIDE CB Open 2022"]
[Site "Ceske Budejovice"]
[Date "2022.07.03"]
[Round "3.51"]
[White "Almaini, Aishah Sarhan"]
[Black "Schmied, Eva-Maria"]
[Result "1/2-1/2"]
[ECO "D40"]
[WhiteElo "1615"]
[BlackElo "1718"]
[Annotator "NA"]
[PlyCount "54"]
[EventDate "2022.07.01"]
[EventType "swiss"]
[EventCountry "CZE"]
[SourceTitle "playchess.com"]
[Source "ChessBase"]
[SourceQuality "1"]
[TimeControl "40/5400+30:1800+30"]

1. d4 {[%emt 0:00:08]} d5 {[%emt 0:00:06]} 2. c4 {[%emt 0:00:07]} c6 {[%emt 0:00:03]} 3. Nc3 {[%emt 0:00:20]} Nf6 {[%emt 0:00:07]} 4. e3 {[%emt 0:00:08]} e6 {[%emt 0:00:10]} 5. Bd3 {[%emt 0:00:07]} dxc4 {[%emt 0:00:41]} 6. Bxc4 {[%emt 0:00:02]} b5 {[%emt 0:00:13]} 7. Bd3 {[%emt 0:00:13]} Bb7 {[%emt 0:00:05]} 8. a3 {[%emt 0:01:35]} a6 {[%emt 0:00:35]} 9. Nf3 {[%emt 0:09:35]} c5 {[%emt 0:03:15]} 10. dxc5 {[%emt 0:03:35]} Bxc5 {[%emt 0:00:23]} 11. b4 {[%emt 0:05:47]} Bb6 {[%emt 0:00:18]} 12. Bb2 {[%emt 0:00:56]} Nbd7 {[%emt 0:01:10]} 13. O-O {[%emt 0:08:37]} Bc7 {[%emt 0:27:48]} 14. Ne2 {[%emt 0:25:30]} Ng4 {[%emt 0:14:20]} 15. Ng3 {[%emt 0:02:36]} h5 {[%emt 0:12:54]} 16. Bxg7 {[%emt 0:12:51]} Rg8 {[%emt 0:01:23]} 17. Nxh5 {[%emt 0:10:26]} Nxh2 {[%emt 0:02:07]} 18. Nxh2 {[%emt 0:00:15]} Qh4 {[%emt 0:00:13]} 19. g3 {[%emt 0:00:28]} Qh3 {[%emt 0:01:44]} 20. e4 {[%emt 0:01:57]} O-O-O {[%emt 0:01:11]} 21. Qg4 {[%emt 0:02:20]} Qxg4 {[%emt 0:00:37]} 22. Nxg4 {[%emt 0:00:01]} Rxg7 {[%emt 0:01:53]} 23. Nxg7 {[%emt 0:00:11]} Rg8 {[%emt 0:00:15]} 24. Nxe6 {[%emt 0:02:47]} fxe6 {[%emt 0:00:08]} 25. Ne3 {[%emt 0:00:25]} Ne5 {[%emt 0:01:01]} 26. Bc2 {[%emt 0:02:00]} Nf3+ {[%emt 0:01:01]} 27. Kg2 {[%emt 0:00:13]} Nd2 {[%emt 0:00:14]} 1/2-1/2

[Event "FIDE CB Open 2022"]
[Site "Ceske Budejovice"]
[Date "2022.07.03"]
[Round "3.52"]
[White "Nagyova, Daniela"]
[Black "Smola, David"]
[Result "1-0"]
[ECO "C52"]
[WhiteElo "1712"]
[BlackElo "1609"]
[Annotator "NA"]
[PlyCount "75"]
[EventDate "2022.07.01"]
[EventType "swiss"]
[EventCountry "CZE"]
[SourceTitle "playchess.com"]
[Source "ChessBase"]
[SourceQuality "1"]
[TimeControl "40/5400+30:1800+30"]

1. e4 {[%emt 0:00:06]} e5 {[%emt 0:00:28]} 2. Nf3 {[%emt 0:00:14]} Nc6 {[%emt 0:00:25]} 3. Bc4 {[%emt 0:00:15]} Bc5 {[%emt 0:00:37]} 4. b4 {[%emt 0:01:10]} Bxb4 {[%emt 0:02:04]} 5. c3 {[%emt 0:00:17]} Bc5 {[%emt 0:01:24]} 6. O-O {[%emt 0:00:31]} d6 {[%emt 0:07:41]} 7. d4 {[%emt 0:01:05]} Bb6 {[%emt 0:04:57]} 8. dxe5 {[%emt 0:01:15]} dxe5 {[%emt 0:06:14]} 9. Qb3 {[%emt 0:03:03]} Qe7 {[%emt 0:06:49]} 10. Ba3 {[%emt 0:02:11]} Na5 {[%emt 0:05:14]} 11. Bxe7 {[%emt 0:08:51]} Nxb3 {[%emt 0:01:02]} 12. axb3 {[%emt 0:00:30]} Nxe7 {[%emt 0:00:52]} 13. Nxe5 {[%emt 0:01:05]} f6 {[%emt 0:01:35]} 14. Nf3 {[%emt 0:03:34]} Bg4 {[%emt 0:02:24]} 15. Nd4 {[%emt 0:03:21]} Ng6 {[%emt 0:08:21]} 16. f3 {[%emt 0:05:46]} Bd7 {[%emt 0:01:07]} 17. f4 {[%emt 0:04:52]} O-O-O {[%emt 0:02:04]} 18. Kh1 {[%emt 0:02:58]} Rhe8 {[%emt 0:03:19]} 19. Nd2 {[%emt 0:03:16]} Re7 {[%emt 0:01:13]} 20. Ra2 {[%emt 0:07:07]} Kb8 {[%emt 0:06:13]} 21. b4 {[%emt 0:05:40]} Bc8 {[%emt 0:03:49]} 22. f5 {[%emt 0:03:20]} Nf8 {[%emt 0:06:14]} 23. N4f3 {[%emt 0:03:55]} Nd7 {[%emt 0:01:48]} 24. Bb3 {[%emt 0:08:14]} Ne5 {[%emt 0:01:53]} 25. Nxe5 {[%emt 0:00:41]} Rxe5 {[%emt 0:00:08]} 26. Rf3 {[%emt 0:04:02]} Bd7 {[%emt 0:02:26]} 27. Rd3 {[%emt 0:03:00]} Kc8 {[%emt 0:01:40]} 28. Ra1 {[%emt 0:01:48]} Bc6 {[%emt 0:03:16]} 29. Be6+ {[%emt 0:04:17]} Bd7 {[%emt 0:00:15]} 30. Bd5 {[%emt 0:03:32]} Bc6 {[%emt 0:01:46]} 31. Nc4 {[%emt 0:03:58]} Re7 {[%emt 0:06:24]} 32. Be6+ {[%emt 0:02:36]} Bd7 {[%emt 0:01:49]} 33. Rad1 {[%emt 0:01:08]} g6 {[%emt 0:04:21]} 34. g4 {[%emt 0:04:16]} h5 {[%emt 0:02:53]} 35. Bxd7+ {[%emt 0:01:25]} Rexd7 {[%emt 0:01:54]} 36. Rxd7 {[%emt 0:00:08]} Rxd7 {[%emt 0:00:22]} 37. Rxd7 {[%emt 0:00:05]} Kxd7 {[%emt 0:00:04]} 38. fxg6 {[%emt 0:00:10]} 1-0

[Event "FIDE CB Open 2022"]
[Site "Ceske Budejovice"]
[Date "2022.07.03"]
[Round "3.53"]
[White "Rybackova, Lucie"]
[Black "Kukacka, Ladislav"]
[Result "1/2-1/2"]
[ECO "E77"]
[WhiteElo "1696"]
[BlackElo "1555"]
[Annotator "NA RC"]
[PlyCount "108"]
[EventDate "2022.07.01"]
[EventType "swiss"]
[EventCountry "CZE"]
[SourceTitle "playchess.com"]
[Source "ChessBase"]
[SourceQuality "1"]
[TimeControl "40/5400+30:1800+30"]

1. d4 {[%emt 0:00:07]} d6 {[%emt 0:01:32]} 2. c4 {[%emt 0:00:46]} Nf6 {[%emt 0:00:56]} 3. Nc3 {[%emt 0:01:18]} g6 {[%emt 0:00:56]} 4. e4 {[%emt 0:01:32]} Bg7 {[%emt 0:00:44]} 5. f4 {[%emt 0:00:24]} c5 {[%emt 0:01:50]} 6. d5 {[%emt 0:00:53]} O-O {[%emt 0:01:39]} 7. Nf3 {[%emt 0:01:30]} e6 {[%emt 0:01:05]} 8. Be2 {[%emt 0:03:24]} a6 {[%emt 0:01:39]} 9. a4 {[%emt 0:06:39]} Qc7 {[%emt 0:01:40]} 10. O-O {[%emt 0:04:44]} Nbd7 {[%emt 0:03:38]} 11. h3 {[%emt 0:06:37]} b6 {[%emt 0:03:58]} 12. Be3 {[%emt 0:11:50]} Bb7 {[%emt 0:01:47]} 13. Qc2 {[%emt 0:08:44]} Rae8 {[%emt 0:01:57]} 14. a5 {[%emt 0:07:16]} exd5 {[%emt 0:07:44]} 15. cxd5 {[%emt 0:00:24]} Nxd5 {[%emt 0:01:54]} 16. Nxd5 {[%emt 0:03:48]} Bxd5 {[%emt 0:00:53]} 17. exd5 {[%emt 0:02:29]} Rxe3 {[%emt 0:00:42]} 18. axb6 {[%emt 0:02:03]} Qxb6 {[%emt 0:05:20]} 19. Bxa6 {[%emt 0:03:30]} c4 {[%emt 0:08:51]} 20. Rf2 {[%emt 0:05:54]} Rxf3 {[%emt 0:07:39]} 21. gxf3 {[%emt 0:01:56]} Bd4 {[%emt 0:00:28]} 22. Kg2 {[%emt 0:02:47]} Bxf2 {[%emt 0:00:58]} 23. Qxf2 {[%emt 0:00:07]} Qxf2+ {[%emt 0:02:48]} 24. Kxf2 {[%emt 0:00:08]} Ra8 {[%emt 0:02:03]} 25. Ra3 {[%emt 0:07:26]} Nb6 {[%emt 0:01:31]} 26. Bb7 {[%emt 0:05:01]} Ra4 {[%emt 0:05:33]} 27. Bc6 {[%emt 0:04:04]} Rb4 {[%emt 0:04:07]} 28. Ra2 {[%emt 0:00:46]} Rb3 {[%emt 0:02:57]} 29. Ke2 {[%emt 0:02:02]} Kg7 {[%emt 0:00:31]} 30. Kf2 {[%emt 0:00:30]} Kf6 {[%emt 0:00:44]} 31. Kg3 {[%emt 0:00:48]} Kf5 {[%emt 0:01:22]} 32. Ra7 {[%emt 0:01:36]} f6 {[%emt 0:05:51]} 33. Rxh7 {[%emt 0:03:16]} Rxb2 {[%emt 0:00:42]} 34. Bd7+ {[%emt 0:01:24]} Nxd7 {[%emt 0:00:11]} 35. Rxd7 {[%emt 0:00:05]} c3 {[%emt 0:02:20]} 36. Rxd6 {[%emt 0:00:22]} c2 {[%emt 0:01:44]} 37. Rc6 {[%emt 0:00:17]} g5 {[%emt 0:04:17]} 38. fxg5 {[%emt 0:00:27]} fxg5 {[%emt 0:01:40]} 39. Rc5 {[%emt 0:01:07]} Ke5 {[%emt 0:02:47]} 40. Kg4 {[%emt 0:01:54]} Kd6 {[%emt 0:01:42]} 41. Rc8 {[%emt 0:01:11]} Kxd5 {[%emt 0:00:47]} 42. Kxg5 {[%emt 0:01:14]} Kd4 {[%emt 0:00:55]} 43. Kg4 {[%emt 0:02:52]} Kd3 {[%emt 0:00:25]} 44. Rd8+ {[%emt 0:00:19]} Kc3 {[%emt 0:00:30]} 45. Rc8+ {[%emt 0:00:07]} Kd2 {[%emt 0:00:31]} 46. Rd8+ {[%emt 0:00:08]} Kc1 {[%emt 0:00:26]} 47. f4 {[%emt 0:01:16]} Kb1 {[%emt 0:00:12]} 48. Rc8 {[%emt 0:00:21]} c1=Q {[%emt 0:00:30]} 49. Rxc1+ {[%emt 0:00:05]} Kxc1 {[%emt 0:00:14]} 50. f5 {[%emt 0:00:25]} Rg2+ {[%emt 0:00:59]} 51. Kh5 {[%emt 0:01:00]} Rg8 {[%emt 0:01:34]} 52. f6 {[%emt 0:00:24]} Rh8+ {[%emt 0:01:25]} 53. Kg6 {[%emt 0:09:53]} Rxh3 {[%emt 0:00:16]} 54. f7 {[%emt 0:00:21]} Rf3 {[%emt 0:00:14]} 1/2-1/2

[Event "FIDE CB Open 2022"]
[Site "Ceske Budejovice"]
[Date "2022.07.03"]
[Round "3.54"]
[White "Simajchl, Adam"]
[Black "Zednicek, Filip"]
[Result "0-1"]
[ECO "D34"]
[WhiteElo "1610"]
[BlackElo "1688"]
[Annotator "NA"]
[PlyCount "55"]
[EventDate "2022.07.01"]
[EventType "swiss"]
[EventCountry "CZE"]
[SourceTitle "playchess.com"]
[Source "ChessBase"]
[SourceQuality "1"]
[TimeControl "40/5400+30:1800+30"]

1. d4 {[%emt 0:00:03]} d5 {[%emt 0:14:30]} 2. c4 {[%emt 0:01:17]} e6 {[%emt 0:01:51]} 3. cxd5 {[%emt 0:00:10]} exd5 {[%emt 0:00:09]} 4. Nc3 {[%emt 0:02:45]} Nf6 {[%emt 0:01:47]} 5. Nf3 {[%emt 0:00:13]} c5 {[%emt 0:00:17]} 6. Bg5 {[%emt 0:00:36]} cxd4 {[%emt 0:02:01]} 7. Nxd4 {[%emt 0:00:02]} Be7 {[%emt 0:00:27]} 8. e3 {[%emt 0:06:42]} O-O {[%emt 0:02:26]} 9. g3 {[%emt 0:04:24]} Nc6 {[%emt 0:02:19]} 10. Bg2 {[%emt 0:00:23]} Be6 {[%emt 0:02:54]} 11. O-O {[%emt 0:06:17]} h6 {[%emt 0:02:24]} 12. Bxf6 {[%emt 0:08:21]} Bxf6 {[%emt 0:00:15]} 13. Nce2 {[%emt 0:01:41]} Re8 {[%emt 0:02:29]} 14. Qd2 {[%emt 0:07:26]} Qd7 {[%emt 0:11:19]} 15. Rfd1 {[%emt 0:04:17]} Rad8 {[%emt 0:02:20]} 16. Nb3 {[%emt 0:09:57]} Ne5 {[%emt 0:03:36]} 17. Nbd4 {[%emt 0:11:57]} Nc4 {[%emt 0:01:41]} 18. Qc2 {[%emt 0:01:37]} Rc8 {[%emt 0:03:20]} 19. Nc3 {[%emt 0:03:44]} Bg4 {[%emt 0:10:46]} 20. Nde2 {[%emt 0:04:06]} d4 {[%emt 0:06:01]} 21. Rd3 {[%emt 0:04:43]} Qf5 {[%emt 0:04:22]} 22. exd4 {[%emt 0:04:54]} Bxe2 {[%emt 0:01:11]} 23. Nxe2 {[%emt 0:00:14]} Ne5 {[%emt 0:00:30]} 24. Qxc8 {[%emt 0:08:46]} Rxc8 {[%emt 0:00:24]} 25. Re3 {[%emt 0:01:24]} Nc4 {[%emt 0:01:52]} 26. Rf3 {[%emt 0:00:03]} Qc2 {[%emt 0:00:21]} 27. Nf4 {[%emt 0:01:05]} Bxd4 {[%emt 0:01:38]} 28. Rf1 {[%emt 0:01:30]} 0-1

[Event "FIDE CB Open 2022"]
[Site "Ceske Budejovice"]
[Date "2022.07.03"]
[Round "3.55"]
[White "Jilek, Marcel"]
[Black "Rybacek, Martin"]
[Result "1/2-1/2"]
[ECO "E16"]
[WhiteElo "1565"]
[BlackElo "1650"]
[Annotator "NA"]
[PlyCount "65"]
[EventDate "2022.07.01"]
[EventType "swiss"]
[EventCountry "CZE"]
[SourceTitle "playchess.com"]
[Source "ChessBase"]
[SourceQuality "1"]
[TimeControl "40/5400+30:1800+30"]

1. d4 {[%emt 0:00:05]} Nf6 {[%emt 0:00:13]} 2. c4 {[%emt 0:00:07]} e6 {[%emt 0:00:21]} 3. Nf3 {[%emt 0:01:09]} Bb4+ {[%emt 0:00:23]} 4. Bd2 {[%emt 0:00:12]} Bxd2+ {[%emt 0:00:30]} 5. Nbxd2 {[%emt 0:00:14]} O-O {[%emt 0:01:42]} 6. g3 {[%emt 0:01:42]} b6 {[%emt 0:01:41]} 7. Bg2 {[%emt 0:00:13]} Bb7 {[%emt 0:01:29]} 8. O-O {[%emt 0:00:43]} d6 {[%emt 0:02:03]} 9. Qc2 {[%emt 0:03:17]} Nbd7 {[%emt 0:02:49]} 10. b3 {[%emt 0:04:19]} c5 {[%emt 0:02:59]} 11. dxc5 {[%emt 0:00:38]} Nxc5 {[%emt 0:05:29]} 12. Rad1 {[%emt 0:02:06]} Qe7 {[%emt 0:02:45]} 13. Nb1 {[%emt 0:06:46]} Rfd8 {[%emt 0:03:46]} 14. Nc3 {[%emt 0:01:30]} Rac8 {[%emt 0:02:03]} 15. Qb1 {[%emt 0:10:45]} Nce4 {[%emt 0:05:00]} 16. Nxe4 {[%emt 0:04:11]} Bxe4 {[%emt 0:01:33]} 17. Qb2 {[%emt 0:00:20]} d5 {[%emt 0:03:06]} 18. Nd2 {[%emt 0:03:47]} Bxg2 {[%emt 0:02:27]} 19. Kxg2 {[%emt 0:01:24]} d4 {[%emt 0:05:33]} 20. Nf3 {[%emt 0:02:25]} e5 {[%emt 0:02:16]} 21. Rfe1 {[%emt 0:01:36]} Nd7 {[%emt 0:08:27]} 22. e3 {[%emt 0:01:50]} dxe3 {[%emt 0:01:44]} 23. Rxe3 {[%emt 0:00:51]} f6 {[%emt 0:00:17]} 24. Ree1 {[%emt 0:08:16]} Nc5 {[%emt 0:02:23]} 25. Rxd8+ {[%emt 0:01:28]} Rxd8 {[%emt 0:00:42]} 26. Qe2 {[%emt 0:00:21]} Qd6 {[%emt 0:02:22]} 27. Kg1 {[%emt 0:00:37]} Qd3 {[%emt 0:06:29]} 28. h4 {[%emt 0:03:20]} e4 {[%emt 0:04:34]} 29. Nh2 {[%emt 0:01:04]} Qxe2 {[%emt 0:05:16]} 30. Rxe2 {[%emt 0:00:26]} f5 {[%emt 0:00:34]} 31. Nf1 {[%emt 0:02:34]} Kf7 {[%emt 0:05:25]} 32. Ne3 {[%emt 0:00:29]} g6 {[%emt 0:01:13]} 33. Nd5 {[%emt 0:00:29]} 1/2-1/2